fUSD/lending_fUSD_20240626
["ID","MTS","AMOUNT","RATE_DAILY","PERIOD"]
[330419345,1719365441868,-54644.04710353,0.00022787,2]
[330419346,1719365441878,-776.03789845,0.0002279,2]
[330419347,1719365441888,-1000.0,0.00022806,2]
[330419348,1719365441898,-500.0,0.00022806,2]
[330419349,1719365441908,-200.0,0.00022806,2]
[330419350,1719365441917,-6817.91235784,0.0002281,3]
[330419351,1719365441927,-155.0,0.00022811,2]
[330419352,1719365441937,-27271.6494314,0.00022812,3]
[330419353,1719365441946,-6272.64999256,0.00022813,2]
[330419354,1719365441956,-1263.41272786,0.00022821,2]
[330419355,1719365441966,-661.96914515,0.00022821,2]
[330419356,1719365441975,-155.0,0.00022821,2]
[330419357,1719365441985,-54644.04710353,0.00022822,2]
[330419358,1719365441995,-264.3264858,0.00022838,2]
[330419359,1719365442005,-6817.91235784,0.00022839,3]
[330419360,1719365442015,-3678.15768095,0.00022846,3]
[330419361,1719365442027,-9814.42610411,0.00022846,3]
[330419362,1719365442038,-486.19451149,0.00022846,3]
[330419363,1719365442050,-504.08999982,0.00022846,3]
[330419364,1719365442062,-378.1299995,0.00022846,3]
[330419365,1719365442074,-529.37778124,0.00022846,3]
[330419366,1719365442205,-11881.27335429,0.00022846,3]
[330419367,1719365442215,-54644.04710353,0.00022856,2]
[330419368,1719365442224,-6817.91235784,0.00022874,3]
[330419369,1719365442234,-1000.0,0.00022879,2]
[330419370,1719365442243,-215.0,0.0002288,2]
[330419371,1719365442253,-68179.1235784,0.0002288,3]
[330419372,1719365442263,-1757.65833399,0.00022883,2]
[330419373,1719365442272,-364.844001,0.00022883,2]
[330419374,1719365442282,-155.23302212,0.00022883,2]
[330419375,1719365442292,-10000.0,0.00022884,2]
[330419376,1719365442302,-6817.91235784,0.00022889,3]
[330419377,1719365442312,-7500.0,0.0002289,2]
[330419378,1719365442322,-536.3407275,0.0002289,2]
[330419379,1719365442331,-132803.78198296,0.0002289,2]
[330419380,1719365442340,-54644.04710353,0.0002289,2]
[330419381,1719365442351,-317.35702724,0.0002289,2]
[330419382,1719365442361,-365.92647149,0.00022899,2]
[330419383,1719365442370,-490.0,0.000229,5]
[330419384,1719365442379,-217.84498894,0.00022929,2]
[330419385,1719365442388,-1630.86697074,0.00022929,2]
[330419386,1719365442398,-3071.06619753,0.0002293,2]
[330419387,1719365442407,-158.25040673,0.00022931,2]
[330419388,1719365442417,-2698.24157576,0.00022932,2]
[330419389,1719365442427,-256.03343524,0.00022932,2]
[330419390,1719365442437,-720.52768086,0.00022944,2]
[330419391,1719365442446,-622.28574283,0.00022945,2]
[330419392,1719365442455,-158.87877684,0.00022945,2]
[330419393,1719365442464,-286.69,0.00022949,2]
[330419394,1719365442475,-526.41386275,0.00022957,2]
[330419395,1719365442485,-944.25093946,0.00022958,2]
[330419396,1719365442495,-269.34473484,0.00022959,2]
[330419397,1719365442504,-6817.91235784,0.0002296,3]
[330419398,1719365442514,-155.0,0.00022967,2]
[330419399,1719365442525,-365.58816224,0.00022973,2]
[330419400,1719365442535,-54543.2988627,0.00022974,3]
[330419401,1719365442545,-866.0,0.00022979,2]
[330419402,1719365442555,-47725.3865049,0.0002298,3]
[330419403,1719365442564,-151.0,0.0002298,7]
[330419404,1719365442574,-299.39398573,0.00022983,2]
[330419405,1719365442583,-93415.342194,0.00022984,2]
[330419406,1719365442593,-454.01660132,0.00022984,2]
[330419407,1719365442602,-4218.3770682,0.00022984,2]
[330419408,1719365442611,-11780.3562368,0.00022984,2]
[330419409,1719365442621,-150.0,0.00022989,10]
[330419410,1719365442631,-150.0,0.00022989,10]
[330419411,1719365442640,-150.0,0.00022989,10]
[330419412,1719365442650,-150.0,0.00022989,10]
[330419413,1719365442660,-9270.4302554,0.00022989,2]
[330419414,1719365442670,-74617.80929408,0.0002299,7]
[330419415,1719365442682,-3762.41856736,0.0002299,7]
[330419416,1719365442694,-1369.87321711,0.0002299,7]
[330419417,1719365442706,-1129.74655957,0.0002299,7]
[330419418,1719365442717,-890.90712876,0.0002299,7]
[330419419,1719365442839,-1973.31689691,0.0002299,7]
[330419420,1719365442850,-588.209208,0.0002299,7]
[330419421,1719365442861,-765.65888315,0.0002299,7]
[330419422,1719365442872,-593.49430624,0.0002299,7]
[330419423,1719365442884,-906.50569376,0.0002299,7]
[330419424,1719365442895,-167578.07511798,0.0002299,7]
[330419425,1719365442906,-24645.51915031,0.0002299,7]
[330419426,1719365442918,-513.778761,0.0002299,7]
[330419429,1719365443824,-235.30745469,0.00022931,2]
[330419430,1719365443833,-701.67069352,0.0002299,7]
[330419434,1719365444237,-9483.39540359,0.0002299,7]
[330419435,1719365444626,-912.05926245,0.0002299,7]
[330419437,1719365444637,-1321.79184949,0.0002299,7]
[330419439,1719365447041,-944.34128653,0.00022956,2]
[330419440,1719365447050,-3256.25871347,0.0002299,7]
[330419441,1719365447061,-296.26673161,0.0002299,7]
[330419442,1719365447073,-155062.30940067,0.0002299,7]
[330419443,1719365447084,-39619.34750543,0.0002299,7]
[330419444,1719365447095,-7350.49439153,0.0002299,7]
[330419445,1719365447106,-1191.773048,0.0002299,7]
[330419446,1719365447117,-5330.19599405,0.0002299,7]
[330419447,1719365447128,-18687.90820847,0.0002299,7]
[330419448,1719365447139,-2353.38979589,0.0002299,7]
[330419449,1719365447151,-26977.16239601,0.0002299,7]
[330419450,1719365447454,-694.298,0.0002299,7]
[330419452,1719365447465,-484.70300672,0.0002299,7]
[330419460,1719365469146,177.717211,0.00030946,30]
[330419462,1719365562893,-150.0,0.00011099,2]
[330419464,1719365653204,150.0,0.00011,2]
[330419465,1719365653228,150.0,0.00011,2]
[330419466,1719365653252,150.0,0.00011,2]
[330419467,1719365653276,150.0,0.00011,2]
[330419468,1719365653300,150.0,0.00011,2]
[330419469,1719365653324,41.99564126,0.00011,2]
[330419471,1719365703091,150.0,0.00011,2]
[330419472,1719365703116,150.0,0.00011,2]
[330419473,1719365703143,150.0,0.00011,2]
[330419474,1719365703164,150.0,0.00011,2]
[330419475,1719365703187,150.0,0.00011,2]
[330419476,1719365703209,150.0,0.00011,2]
[330419477,1719365703232,38.62700614,0.00011,2]
[330419480,1719365769640,150.0,0.00030946,30]
[330419486,1719365806242,156.97681257,0.00030946,120]
[330419487,1719365810140,150.0,0.00011,2]
[330419488,1719365810164,150.0,0.00011,2]
[330419489,1719365810187,150.0,0.00011,2]
[330419490,1719365810213,150.0,0.00011,2]
[330419491,1719365810237,150.0,0.00011,2]
[330419492,1719365810259,150.0,0.00011,2]
[330419494,1719365836634,32103.68449552,0.00030946,30]
[330419497,1719366154671,-1105.0006,0.00011099,2]
[330419498,1719366180880,1130.54183911,0.00030938,120]
[330419499,1719366263489,150.58240694,0.00011098,2]
[330419500,1719366263510,793.75887959,0.00011098,2]
[330419501,1719366393526,150.5,0.0001399,30]
[330419502,1719366394126,193.72,0.0001398,30]
[330419520,1719366632836,-331.08993171,0.000129,2]
[330419521,1719366632850,-151.52933245,0.00013,2]
[330419522,1719366632864,-318.74628352,0.00013268,2]
[330419523,1719366632880,-335.33371648,0.00013268,2]
[330419524,1719366632895,-229.31428841,0.000139,2]
[330419525,1719366632908,-175.12312546,0.00013964,2]
[330419526,1719366632922,-1174.0550689,0.00013964,2]
[330419527,1719366632935,-300.0,0.00013989,2]
[330419528,1719366632948,-2718.59806729,0.0001399,2]
[330419529,1719366632962,-155.41630644,0.0001399,2]
[330419530,1719366632976,-155.41630644,0.0001399,2]
[330419531,1719366632990,-155.41630644,0.0001399,2]
[330419532,1719366633003,-151.65352052,0.00013999,2]
[330419533,1719366633017,-3597.26653144,0.00014,2]
[330419534,1719366633032,-230301.53077575,0.00014,2]
[330419535,1719366633049,-750.93154305,0.00014,2]
[330419537,1719366633064,-10338.91143297,0.00014,2]
[330419538,1719366633080,-16234.94453886,0.00014,2]
[330419539,1719366633096,-1798.17271157,0.00014,2]
[330419540,1719366633112,-387.99999996,0.00014,2]
[330419545,1719366637920,-701.89106013,0.00014,2]
[330419551,1719366638137,-22256.41329664,0.00014,2]
[330419552,1719366638150,-65354.10844451,0.00014,2]
[330419553,1719366638218,-386.70587366,0.00014,2]
[330419579,1719366640205,-1264.91726722,0.00014,2]
[330419580,1719366640226,-3107.12544579,0.00014,2]
[330419581,1719366640237,-10454.55,0.00014,2]
[330419582,1719366640276,-6330.57841598,0.00014,2]
[330419583,1719366640288,-775.77409809,0.00014,2]
[330419584,1719366640300,-13857.20132762,0.00014,2]
[330419585,1719366640311,-9613.92971346,0.00014,2]
[330419586,1719366640322,-7849.97467302,0.00014,2]
[330419587,1719366640334,-641.07294602,0.00014,2]
[330419588,1719366640345,-409.45999997,0.00014,2]
[330419589,1719366640357,-4608.4,0.00014,2]
[330419590,1719366640370,-1022.04087,0.00014,2]
[330419601,1719366640529,-910.0,0.00014,2]
[330419603,1719366640540,-2170.64132,0.00014,2]
[330419605,1719366640551,-621.21999983,0.00014,2]
[330419607,1719366640562,-537.93653036,0.00014,2]
[330419616,1719366640640,-503.61695748,0.00014,2]
[330419637,1719366643109,-776.01999628,0.00014,2]
[330419638,1719366643121,-828.90081964,0.00014,2]
[330419639,1719366643132,-32546.41815225,0.00014,2]
[330419640,1719366643144,-501.77587846,0.00014,2]
[330419641,1719366643410,-526.93192929,0.00014,2]
[330419642,1719366643421,-1851.12984424,0.00014,2]
[330419643,1719366643432,-6768.57637746,0.00014,2]
[330419647,1719366648170,-270.462826,0.00014,2]
[330419648,1719366648181,-1748.9835148,0.00014,2]
[330419649,1719366648222,-43060.68589921,0.00014,2]
[330419652,1719366648921,-2085.163727,0.00014,2]
[330419653,1719366738871,467.9407,0.00030941,30]
[330419654,1719366760059,163.58,0.00012005,2]
[330419655,1719366792650,5100.0,0.00030941,35]
[330419656,1719366798036,313.11316843,0.00030941,30]
[330419657,1719366825771,1368.05804847,0.00012005,2]
[330419658,1719366862681,981.0,0.00030941,30]
[330419659,1719366949083,514.0,0.00030941,30]
[330419660,1719366949844,2574.0,0.00030941,30]
[330419661,1719366950656,2159.0,0.00030941,30]
[330419662,1719366968664,252.757173,0.00030941,30]
[330419663,1719367054332,3940.32046316,0.00030941,30]
[330419664,1719367069650,191.0,0.00030941,30]
[330419665,1719367070562,191.0,0.00030941,30]
[330419666,1719367270034,150.0,0.00031034,30]
[330419667,1719367285380,733.89,0.00011738,2]
[330419675,1719367463509,981.0,0.00031033,30]
[330419676,1719367548177,514.0,0.00031033,30]
[330419677,1719367548586,2060.0,0.00031033,30]
[330419680,1719367665967,191.0,0.00031033,30]
[330419685,1719367832152,-510.3000105,0.00012437,2]
[330419686,1719367832164,-726.48604474,0.00012437,2]
[330419687,1719367832176,-388.88750137,0.00012437,2]
[330419689,1719367832484,-501.08,0.00012437,2]
[330419690,1719367832496,-25.40320969,0.00012437,2]
[330419691,1719367832506,-162.12,0.00013224,2]
[330419692,1719367832515,-150.0,0.00013245,2]
[330419693,1719367832525,-2136.17679031,0.00013246,2]
[330419694,1719367832536,-1000.0,0.00013246,2]
[330419695,1719367832547,-1792.57964225,0.00013246,2]
[330419696,1719367838294,-3385.96953395,0.00013245,2]
[330419697,1719367838306,-21309.84708642,0.00013245,2]
[330419698,1719367838316,-4241.93356744,0.00013246,2]
[330419699,1719367838325,-250.0,0.00013389,2]
[330419700,1719367838334,-1000.0,0.00013655,2]
[330419701,1719367838345,-155.10920839,0.00013684,2]
[330419702,1719367838354,-250.0,0.00013685,2]
[330419703,1719367838364,-200.0,0.00013699,2]
[330419704,1719367838373,-1093.83,0.00013699,2]
[330419705,1719367838383,-223.6,0.00013699,2]
[330419706,1719367838392,-3034.96,0.00013718,2]
[330419707,1719367838402,-940.3,0.00013718,2]
[330419708,1719367838412,-2204.95837318,0.00013814,2]
[330419709,1719367838421,-190.68097376,0.00013814,2]
[330419710,1719367838431,-160.36976779,0.00013876,2]
[330419711,1719367838440,-232.67603997,0.00013876,2]
[330419712,1719367838450,-187.2,0.00013877,2]
[330419713,1719367838459,-4705.97881648,0.00013901,2]
[330419714,1719367838469,-357.79851073,0.00013901,2]
[330419715,1719367838478,-175.42864382,0.00013901,2]
[330419716,1719367838487,-220.04887197,0.00013901,2]
[330419717,1719367838497,-179.95666088,0.00013963,2]
[330419718,1719367838507,-439.12568331,0.00013963,2]
[330419719,1719367838516,-10290.34096213,0.00013964,2]
[330419720,1719367838526,-499.99,0.00013964,2]
[330419721,1719367838535,-2836.17721895,0.00013995,2]
[330419722,1719367838544,-1628.52558138,0.00013999,2]
[330419723,1719367838554,-188.30541442,0.00013999,2]
[330419724,1719367838563,-155.10634502,0.00013999,2]
[330419725,1719367838572,-163.63235046,0.00013999,2]
[330419726,1719367838581,-171304.64287828,0.00014,2]
[330419727,1719367838594,-10391.0,0.00014,2]
[330419728,1719367838607,-2631.13831051,0.00014,2]
[330419729,1719367838618,-845.57482597,0.00014,2]
[330419730,1719367838629,-56038.15258087,0.00014,2]
[330419731,1719367838640,-257.82237684,0.00014,2]
[330419732,1719367838652,-10859.41738551,0.00014,2]
[330419733,1719367838663,-10816.66281497,0.00014,2]
[330419734,1719367838729,-271686.95935817,0.00014,2]
[330419735,1719367838740,-902.15263318,0.00014,2]
[330419736,1719367838752,-2693.31503572,0.00014,2]
[330419737,1719367838765,-999.87267937,0.00014,2]
[330419738,1719367838776,-6185.98287592,0.00014,2]
[330419739,1719367838788,-633.84,0.00014,2]
[330419740,1719367838799,-5042.8898447,0.00014,2]
[330419741,1719367838811,-284.51111494,0.00014,2]
[330419742,1719367838822,-872.21697906,0.00014,2]
[330419743,1719367838837,-1602.94907378,0.00014,2]
[330419744,1719367838851,-512.52258757,0.00014,2]
[330419745,1719367838865,-22560.57905045,0.00014,2]
[330419746,1719367838877,-4572.78453988,0.00014,2]
[330419747,1719367838888,-865.62426686,0.00014,2]
[330419748,1719367838899,-795.2682055,0.00014,2]
[330419749,1719367838911,-1007.38297438,0.00014,2]
[330419750,1719367838924,-4621.52324931,0.00014,2]
[330419751,1719367838936,-12266.21967178,0.00014,2]
[330419753,1719367840931,-200.93614861,0.00013963,2]
[330419754,1719367840941,-6266.19535965,0.00014,2]
[330419755,1719367840952,-24067.32736272,0.00014,2]
[330419756,1719367840963,-6006.87732014,0.00014,2]
[330419757,1719367840974,-4155.09641126,0.00014,2]
[330419758,1719367840986,-876.35545457,0.00014,2]
[330419759,1719367840997,-3514837.56730254,0.00014,2]
[330419760,1719367841007,-527.88878693,0.00014,2]
[330419761,1719367841016,-218.4586013,0.00014,2]
[330419762,1719367841026,-733.89,0.00014001,2]
[330419763,1719367841035,-10595.32219424,0.00014134,2]
[330419764,1719367841044,-155.76399181,0.00014135,2]
[330419765,1719367841054,-5381.45376565,0.00014135,2]
[330419766,1719367841065,-1269.98169867,0.00014135,2]
[330419767,1719367841074,-1269.98169867,0.00014135,2]
[330419768,1719367841084,-5670.53802249,0.00014137,2]
[330419769,1719367841096,-150.0,0.00014164,2]
[330419770,1719367841105,-223.6,0.00014384,2]
[330419771,1719367841114,-357.7985107,0.00014543,2]
[330419772,1719367841122,-210.0,0.00014569,2]
[330419773,1719367841131,-10290.34096206,0.00014775,2]
[330419774,1719367841141,-172.5,0.00014792,2]
[330419775,1719367841151,-1263.5888371,0.00014846,2]
[330419776,1719367841160,-2561.12932,0.0001485,2]
[330419777,1719367841170,-3000.0,0.0001487,2]
[330419778,1719367841179,-162.12,0.00014876,2]
[330419779,1719367841189,-235.30745469,0.00014899,2]
[330419780,1719367841199,-4705.97881648,0.000149,2]
[330419781,1719367841208,-175.45,0.00014904,2]
[330419782,1719367841218,-3000.0,0.0001499,2]
[330419783,1719367841227,-2385491.39001564,0.00015,2]
[330419784,1719367841236,-3965.70350846,0.00015,2]
[330419785,1719367841246,-1135.64,0.00015007,2]
[330419786,1719367841255,-715.91569762,0.00015051,2]
[330419787,1719367841264,-223.6,0.00015068,2]
[330419788,1719367841275,-294.23,0.00015068,2]
[330419789,1719367841284,-3000.0,0.0001514,2]
[330419790,1719367841294,-2561.12932,0.0001516,2]
[330419791,1719367841303,-357.7985107,0.00015185,2]
[330419792,1719367841312,-3000.0,0.000153,2]
[330419793,1719367841322,-1000.0,0.00015362,2]
[330419794,1719367841331,-3000.0,0.0001546,2]
[330419795,1719367841343,-2561.12933,0.0001547,2]
[330419796,1719367841353,-5000.0,0.00015586,2]
[330419797,1719367841363,-314.6371801,0.00015586,2]
[330419798,1719367841372,-10290.34096206,0.00015587,2]
[330419799,1719367841381,-3000.0,0.0001561,2]
[330419800,1719367841390,-223.6,0.00015753,2]
[330419801,1719367841400,-1135.64,0.00015757,2]
[330419802,1719367841410,-2561.12932,0.0001578,2]
[330419803,1719367841419,-357.7985107,0.00015827,2]
[330419804,1719367841428,-167.29,0.00015831,2]
[330419805,1719367841437,-4705.97881648,0.00015899,2]
[330419806,1719367841449,-242.71297305,0.0001592,2]
[330419807,1719367841459,-293.0,0.00016026,2]
[330419808,1719367841468,-260.10605214,0.00016086,2]
[330419809,1719367841477,-1134.26087877,0.00016086,2]
[330419810,1719367841486,-2561.12932,0.000161,2]
[330419811,1719367841496,-346.94458893,0.00016239,2]
[330419812,1719367841505,-958.49515159,0.00016255,2]
[330419813,1719367841521,-733.89,0.00016265,2]
[330419814,1719367841531,-163.0,0.0001628,2]
[330419815,1719367841541,-10290.34096206,0.00016398,2]
[330419816,1719367841551,-379.53906816,0.00016409,2]
[330419817,1719367841560,-366.25238689,0.00016409,2]
[330419818,1719367841571,-2561.12933,0.0001641,2]
[330419819,1719367841580,-223.6,0.00016438,2]
[330419820,1719367841589,-294.23,0.00016438,2]
[330419821,1719367841598,-476.46396004,0.00016468,2]
[330419822,1719367841607,-357.7985107,0.00016469,2]
[330419823,1719367841617,-1135.64,0.00016507,2]
[330419824,1719367841629,-162.12,0.00016529,2]
[330419825,1719367841638,-165.68,0.00016609,2]
[330419826,1719367841647,-4705.97881648,0.00016897,2]
[330419827,1719367841657,-1000.0,0.00017069,2]
[330419828,1719367841667,-357.7985107,0.00017111,2]
[330419829,1719367841676,-10290.34096206,0.0001721,2]
[330419830,1719367841686,-1135.64,0.00017258,2]
[330419831,1719367841696,-164.81,0.0001738,2]
[330419832,1719367841706,-156.64785924,0.000177,2]
[330419833,1719367841716,-357.7985107,0.00017753,2]
[330419834,1719367841726,-4705.97881648,0.00017896,2]
[330419835,1719367841735,-226.2378555,0.00018,2]
[330419836,1719367841745,-268.9555534,0.00018,2]
[330419837,1719367841754,-1135.64,0.00018008,2]
[330419838,1719367841764,-10290.34096206,0.00018021,2]
[330419839,1719367841780,-162.12,0.00018182,2]
[330419840,1719367841791,-163.0,0.00018315,2]
[330419841,1719367841800,-357.7985107,0.00018396,2]
[330419842,1719367841812,-167.29,0.00018444,2]
[330419843,1719367841821,-12786.69952283,0.000185,2]
[330419844,1719367841830,-733.89,0.00018529,2]
[330419845,1719367841842,-1000.0,0.00018776,2]
[330419846,1719367841853,-10290.34096206,0.00018833,2]
[330419847,1719367841863,-4705.97881648,0.00018895,2]
[330419848,1719367841872,-133716.0,0.00018904,5]
[330419849,1719367841881,-479984.76017944,0.00019,2]
[330419850,1719367841889,-266.0,0.00019,2]
[330419851,1719367841898,-357.7985107,0.00019038,2]
[330419852,1719367841908,-150.0,0.0001906,2]
[330419853,1719367841917,-480.48778276,0.00019119,2]
[330419854,1719367841927,-273.1342991,0.00019178,2]
[330419855,1719367841936,-500.0,0.00019178,2]
[330419856,1719367841946,-265.58060238,0.00019178,2]
[330419857,1719367841955,-500.0,0.00019178,2]
[330419858,1719367841964,-500.0,0.00019178,2]
[330419859,1719367841974,-500.0,0.00019178,2]
[330419860,1719367841983,-500.0,0.00019178,2]
[330419861,1719367841992,-500.0,0.00019178,2]
[330419862,1719367842002,-500.0,0.00019178,2]
[330419863,1719367842012,-500.0,0.00019178,2]
[330419864,1719367842022,-500.0,0.00019178,2]
[330419865,1719367842032,-500.0,0.00019178,2]
[330419866,1719367842042,-536.51491761,0.00019178,2]
[330419867,1719367842051,-500.0,0.00019178,2]
[330419868,1719367842060,-500.0,0.00019178,2]
[330419869,1719367842069,-500.0,0.00019178,2]
[330419870,1719367842079,-500.0,0.00019178,2]
[330419871,1719367842091,-615.72907786,0.00019178,2]
[330419872,1719367842100,-500.0,0.00019178,2]
[330419873,1719367842109,-500.0,0.00019178,2]
[330419874,1719367842117,-500.0,0.00019178,2]
[330419875,1719367842127,-250.0,0.00019178,2]
[330419876,1719367842136,-1715.98,0.0001918,2]
[330419877,1719367842146,-1715.98,0.0001918,2]
[330419878,1719367842156,-1715.98,0.0001918,2]
[330419879,1719367842165,-1715.98,0.0001918,2]
[330419880,1719367842174,-1715.98,0.0001918,2]
[330419881,1719367842184,-1715.98,0.0001918,2]
[330419882,1719367842193,-1715.98,0.0001918,2]
[330419883,1719367842202,-1715.98,0.0001918,2]
[330419884,1719367842212,-1715.98,0.0001918,2]
[330419885,1719367842221,-1715.98,0.0001918,2]
[330419886,1719367842230,-3034.96,0.00019205,2]
[330419887,1719367842239,-165.68,0.0001935,2]
[330419888,1719367842249,-250.0,0.00019608,2]
[330419889,1719367842258,-7438.25184872,0.00019643,2]
[330419890,1719367842267,-10290.34096206,0.00019644,2]
[330419891,1719367842278,-5610.71430653,0.00019673,2]
[330419892,1719367842288,-357.7985107,0.0001968,2]
[330419893,1719367842297,-269.38352443,0.00019832,2]
[330419894,1719367842307,-622.38422952,0.00019833,2]
[330419895,1719367842316,-492.91860228,0.00019833,2]
[330419896,1719367842325,-720.62297892,0.00019833,2]
[330419897,1719367842335,-158.31418936,0.00019834,2]
[330419898,1719367842348,-162.12,0.00019835,2]
[330419899,1719367842358,-3071.06619753,0.00019893,2]
[330419900,1719367842369,-4705.97881648,0.00019894,2]
[330419901,1719367842379,-1757.94329266,0.00019999,2]
[330419902,1719367842388,-158.89963041,0.00019999,2]
[330419903,1719367842397,-866.90298966,0.0002,2]
[330419904,1719367842407,-155.4404447,0.0002,2]
[330419905,1719367842416,-1282.39707885,0.0002,2]
[330419906,1719367842426,-188.56147347,0.0002,2]
[330419907,1719367842435,-155.6046998,0.0002,2]
[330419908,1719367842444,-327.8101767,0.0002,2]
[330419909,1719367842454,-18286.88084408,0.0002,2]
[330419910,1719367842463,-266.0,0.0002,2]
[330419911,1719367842473,-15568.63480662,0.0002,2]
[330419912,1719367842482,-2000.0,0.0002,2]
[330419913,1719367842492,-6272.64999256,0.0002,2]
[330419914,1719367842501,-321.2828725,0.0002,2]
[330419915,1719367842511,-674.13690043,0.0002,2]
[330419916,1719367842521,-1000.0,0.0002,2]
[330419917,1719367842530,-242.64490182,0.0002,2]
[330419918,1719367842539,-242.64490182,0.0002,2]
[330419919,1719367842549,-242.64490182,0.0002,2]
[330419920,1719367842558,-242.64490182,0.0002,2]
[330419921,1719367842567,-242.64490182,0.0002,2]
[330419922,1719367842577,-242.64490182,0.0002,2]
[330419923,1719367842587,-242.64490182,0.0002,2]
[330419924,1719367842598,-242.64490182,0.0002,2]
[330419925,1719367842607,-242.64490182,0.0002,2]
[330419926,1719367842619,-242.64490182,0.0002,2]
[330419927,1719367842629,-242.64490182,0.0002,2]
[330419928,1719367842638,-242.64490182,0.0002,2]
[330419929,1719367842647,-242.64490182,0.0002,2]
[330419930,1719367842657,-242.64490182,0.0002,2]
[330419931,1719367842670,-242.64490182,0.0002,2]
[330419932,1719367842679,-242.64490182,0.0002,2]
[330419933,1719367842689,-242.64490182,0.0002,2]
[330419934,1719367842698,-242.64490182,0.0002,2]
[330419935,1719367842708,-242.64490182,0.0002,2]
[330419936,1719367842718,-242.64490182,0.0002,2]
[330419937,1719367842727,-242.64490182,0.0002,2]
[330419938,1719367842736,-242.64490182,0.0002,2]
[330419939,1719367842746,-242.64490182,0.0002,2]
[330419940,1719367842755,-242.64490182,0.0002,2]
[330419941,1719367842766,-242.64490182,0.0002,2]
[330419942,1719367842780,-242.64490182,0.0002,2]
[330419943,1719367842789,-242.64490182,0.0002,2]
[330419944,1719367842798,-242.64490182,0.0002,2]
[330419945,1719367842807,-242.64490182,0.0002,2]
[330419946,1719367842819,-242.64490182,0.0002,2]
[330419947,1719367842828,-242.64490182,0.0002,2]
[330419948,1719367842837,-242.64490182,0.0002,2]
[330419949,1719367842848,-242.64490182,0.0002,2]
[330419950,1719367842857,-242.64490182,0.0002,2]
[330419951,1719367842867,-242.64490182,0.0002,2]
[330419952,1719367842876,-242.64490182,0.0002,2]
[330419954,1719367842885,-242.64490182,0.0002,2]
[330419956,1719367842895,-242.64490182,0.0002,2]
[330419958,1719367842904,-242.64490182,0.0002,2]
[330419960,1719367842914,-242.64490182,0.0002,2]
[330419962,1719367842923,-242.64490182,0.0002,2]
[330419964,1719367842933,-242.64490182,0.0002,2]
[330419966,1719367842943,-155.0,0.00020009,2]
[330419968,1719367842953,-2000.0,0.0002001,2]
[330419970,1719367842963,-2000.0,0.0002002,2]
[330419973,1719367842973,-2000.0,0.0002003,2]
[330419974,1719367842983,-753.91678168,0.00020039,2]
[330419977,1719367842993,-2533.293031,0.0002004,2]
[330419978,1719367843003,-196.68997332,0.00020099,2]
[330419980,1719367843013,-464.29306278,0.00020099,2]
[330419982,1719367843024,-264.35794991,0.00020099,2]
[330419984,1719367843034,-155.14057928,0.00020099,2]
[330419986,1719367843044,-155.0,0.00020109,2]
[330419988,1719367843054,-155.0,0.00020109,2]
[330419990,1719367843064,-350.71072574,0.00020156,2]
[330419992,1719367843074,-2000.0,0.000202,2]
[330419994,1719367843083,-2000.0,0.0002021,2]
[330419995,1719367843094,-2000.0,0.0002022,2]
[330419997,1719367843104,-2000.0,0.0002023,2]
[330419999,1719367843113,-2193.509385,0.0002024,2]
[330420000,1719367843123,-163.66250419,0.00020272,2]
[330420001,1719367843134,-155.0,0.00020299,2]
[330420003,1719367843144,-357.7985107,0.00020322,2]
[330420005,1719367843153,-163.0,0.0002035,2]
[330420007,1719367843163,-10290.34096206,0.00020456,2]
[330420009,1719367843173,-1000.0,0.00020483,2]
[330420010,1719367843182,-171.81,0.00020548,2]
[330420012,1719367843192,-155.0,0.00020788,2]
[330420013,1719367843201,-733.89,0.00020793,2]